fUSD/lending_fUSD_20240212
["ID","MTS","AMOUNT","RATE_DAILY","PERIOD"]
[313783674,1707723517425,-624.0,0.0003498,120]
[313783675,1707723517449,-1260.43774001,0.00035,30]
[313783676,1707723517473,-4121.72314,0.00035,120]
[313783677,1707723517510,-600.0,0.00035,36]
[313783678,1707723517533,-251.65970281,0.000351,30]
[313783679,1707723517556,-6550.41837561,0.000351,30]
[313783680,1707723517584,-210.45106129,0.000355,30]
[313783681,1707723517609,-2194.1242202,0.00035888,30]
[313783682,1707723517632,-624.0,0.0003598,120]
[313783683,1707723517655,-661017.19734601,0.00036,30]
[313783684,1707723517679,-300.0,0.00036,37]
[313783685,1707723517702,-27667.67380684,0.00036,30]
[313783686,1707723517727,-6512.78315373,0.00036301,30]
[313783687,1707723517749,-863.0,0.000364,34]
[313783688,1707723517775,-339.71144682,0.0003668,30]
[313783689,1707723517798,-30874.9658748,0.000368,30]
[313783690,1707723517821,-10000.0,0.000368,30]
[313783691,1707723517846,-1050.0,0.00036986,32]
[313783692,1707723517868,-1200.0,0.00036986,37]
[313783693,1707723517892,-1108.74780284,0.00036986,42]
[313783694,1707723517919,-150.0,0.00037014,120]
[313783695,1707723517947,-1000.0,0.000374,36]
[313783696,1707723517972,-285.0,0.000375,30]
[313783697,1707723517996,-285.0,0.000377,30]
[313783698,1707723518021,-5000.0,0.0003778,31]
[313783699,1707723518044,-39528.32975504,0.000378,30]
[313783700,1707723518067,-285.0,0.000379,30]
[313783701,1707723518090,-5000.0,0.0003798,31]
[313783702,1707723518113,-32586.25698,0.00038,30]
[313783703,1707723518137,-10000.0,0.00038,30]
[313783704,1707723518160,-10000.0,0.00038,30]
[313783705,1707723518184,-10000.0,0.00038,30]
[313783706,1707723518207,-10000.0,0.00038,30]
[313783707,1707723518232,-10000.0,0.00038,30]
[313783708,1707723518254,-3063.0,0.00038,30]
[313783709,1707723518279,-623.0,0.00038,30]
[313783710,1707723518307,-5000.0,0.0003808,32]
[313783711,1707723518330,-285.0,0.000381,30]
[313783712,1707723518354,-4528.30713862,0.0003819,30]
[313783713,1707723518378,-5000.0,0.0003828,33]
[313783714,1707723518401,-285.0,0.000383,30]
[313783715,1707723518425,-1103.44947007,0.00038355,30]
[313783716,1707723518447,-500.0,0.00038356,30]
[313783717,1707723518471,-500.0,0.00038356,30]
[313783718,1707723518494,-500.0,0.00038356,30]
[313783719,1707723518525,-500.0,0.00038356,30]
[313783720,1707723518549,-500.0,0.00038356,40]
[313783721,1707723518571,-500.0,0.00038356,40]
[313783722,1707723518595,-1000.0,0.00038356,120]
[313783723,1707723518618,-1000.0,0.00038356,120]
[313783724,1707723518642,-1000.0,0.00038356,120]
[313783725,1707723518665,-1000.0,0.00038356,120]
[313783726,1707723518689,-1000.0,0.00038356,120]
[313783727,1707723518713,-1000.0,0.00038356,120]
[313783728,1707723518737,-1000.0,0.00038356,120]
[313783729,1707723518759,-1000.0,0.00038356,120]
[313783730,1707723518783,-1000.0,0.00038356,120]
[313783731,1707723518805,-1000.0,0.00038356,120]
[313783732,1707723518827,-1000.0,0.00038356,120]
[313783733,1707723518850,-1000.0,0.00038356,120]
[313783734,1707723518873,-1000.0,0.00038356,120]
[313783735,1707723518895,-1000.0,0.00038356,120]
[313783736,1707723518918,-1000.0,0.00038356,120]
[313783737,1707723518942,-1000.0,0.00038356,120]
[313783738,1707723518964,-1000.0,0.00038356,120]
[313783739,1707723518987,-1000.0,0.00038356,120]
[313783740,1707723519010,-1000.0,0.00038356,120]
[313783741,1707723519034,-1000.0,0.00038356,120]
[313783742,1707723519057,-288.06138687,0.00038356,120]
[313783743,1707723519080,-1000.0,0.000384,38]
[313783744,1707723519104,-5000.0,0.0003848,34]
[313783745,1707723519127,-285.0,0.000385,30]
[313783746,1707723519149,-2000.0,0.000385,60]
[313783747,1707723519174,-500.0,0.0003863,30]
[313783748,1707723519196,-500.0,0.0003863,30]
[313783749,1707723519220,-500.0,0.0003863,40]
[313783750,1707723519242,-500.0,0.0003863,40]
[313783751,1707723519268,-285.0,0.000387,30]
[313783752,1707723519291,-5000.0,0.0003878,35]
[313783753,1707723519316,-24417.99695084,0.000388,30]
[313783754,1707723519339,-285.0,0.000389,30]
[313783755,1707723519362,-1878.77845394,0.000389,30]
[313783756,1707723519385,-500.0,0.00038904,30]
[313783757,1707723519410,-535.48297444,0.00038904,30]
[313783758,1707723519433,-500.0,0.00038904,40]
[313783759,1707723519458,-5000.0,0.0003898,36]
[313783760,1707723519482,-4820.82330291,0.00039,40]
[313783761,1707723519505,-3467.69991997,0.00039,120]
[313783762,1707723519528,-1008.0,0.00039,30]
[313783763,1707723519552,-150.0,0.00039,70]
[313783764,1707723519575,-312.3990462,0.00039,37]
[313783765,1707723519598,-30000.0,0.00039,30]
[313783766,1707723519622,-3000.0,0.00039,32]
[313783767,1707723519645,-3000.0,0.0003901,32]
[313783768,1707723519669,-5472.481679,0.0003902,32]
[313783769,1707723519869,-5000.0,0.0003908,37]
[313783770,1707723519892,-285.0,0.000391,30]
[313783771,1707723519914,-200000.0,0.00039137,120]
[313783772,1707723519936,-20000.0,0.00039137,120]
[313783773,1707723519959,-627883.58191763,0.00039137,120]
[313783774,1707723519982,-500.0,0.00039178,30]
[313783775,1707723520005,-523.44668575,0.00039178,40]
[313783776,1707723520044,-5000.0,0.0003928,38]
[313783777,1707723520067,-285.0,0.000393,30]
[313783778,1707723520090,-1064412.35391051,0.000394,120]
[313783779,1707723521232,87537.7903,0.0002237,2]
[313783780,1707723521758,3045.88772392,0.000224,2]
[313783781,1707723527365,-151.0,0.0003718,120]
[313783782,1707723527398,-151.0,0.00037938,30]
[313783783,1707723527456,-1906434.81398829,0.000394,120]
[313783784,1707723527479,-1000.0,0.000394,40]
[313783785,1707723527502,-16829.86202231,0.000394,120]
[313783786,1707723527526,-153.65603303,0.0003942,30]
[313783787,1707723527549,-500.0,0.00039452,30]
[313783788,1707723527572,-5000.0,0.0003948,39]
[313783789,1707723527595,-285.0,0.000395,30]
[313783790,1707723527618,-150.0,0.000395,117]
[313783791,1707723527641,-300.0,0.000395,36]
[313783792,1707723527665,-285.0,0.000397,30]
[313783793,1707723527689,-500.0,0.00039726,30]
[313783794,1707723527713,-6572.56018323,0.0003988,40]
[313783795,1707723527737,-285.0,0.000399,30]
[313783796,1707723527762,-10000.0,0.000399,40]
[313783797,1707723527785,-511.1108676,0.000399,30]
[313783798,1707723527810,-412.42717259,0.00039999,31]
[313783799,1707723527832,-215.24373575,0.00039999,31]
[313783800,1707723527855,-161.81941492,0.00039999,31]
[313783801,1707723527878,-393.82820731,0.00039999,31]
[313783802,1707723527901,-212.25887445,0.00039999,31]
[313783803,1707723527924,-284.71352957,0.00039999,31]
[313783804,1707723527948,-613.4552384,0.00039999,31]
[313783805,1707723527971,-5000.0,0.0004,30]
[313783806,1707723527994,-2215.98448019,0.0004,30]
[313783807,1707723528018,-2879.20036242,0.0004,30]
[313783808,1707723528042,-515.79576364,0.0004,30]
[313783809,1707723528066,-312.84467692,0.0004,30]
[313783810,1707723528089,-494.27468616,0.0004,30]
[313783811,1707723528113,-213.0,0.0004,30]
[313783812,1707723528136,-500.0,0.0004,30]
[313783813,1707723528159,-993.80292388,0.0004,30]
[313783814,1707723528181,-500.0,0.0004,30]
[313783815,1707723528205,-500.0,0.0004,30]
[313783816,1707723528238,-500.0,0.0004,30]
[313783817,1707723528269,-500.0,0.0004,30]
[313783818,1707723528294,-5000.0,0.0004,30]
[313783819,1707723528319,-10000.0,0.0004,30]
[313783820,1707723528344,-1500.0,0.0004,30]
[313783821,1707723528367,-559.0,0.0004,30]
[313783822,1707723528392,-496.88260606,0.0004,30]
[313783823,1707723528415,-540.65077855,0.0004,30]
[313783824,1707723528445,-52312.75349808,0.0004,30]
[313783825,1707723528469,-900.0,0.0004,120]
[313783826,1707723528497,-211.83819925,0.0004,30]
[313783827,1707723528523,-150.0,0.0004,104]
[313783828,1707723528546,-1237.48060435,0.0004,60]
[313783829,1707723528570,-195.55020135,0.0004,120]
[313783830,1707723528593,-2000.0,0.0004,120]
[313783831,1707723528617,-300.0,0.0004,38]
[313783832,1707723528640,-2000.0,0.0004,30]
[313783833,1707723528666,-2016.0,0.0004,30]
[313783834,1707723528689,-2000.0,0.0004,30]
[313783835,1707723528712,-1355.0,0.0004,120]
[313783836,1707723528734,-6017.52600622,0.0004,30]
[313783837,1707723528757,-1400.0,0.0004,30]
[313783838,1707723528780,-151664.16959521,0.0004,30]
[313783839,1707723528802,-395.0,0.0004,30]
[313783840,1707723528825,-663.0,0.0004,30]
[313783841,1707723528847,-52526.0,0.0004,30]
[313783842,1707723528871,-90954.0,0.0004,30]
[313783843,1707723528895,-50000.0,0.0004,30]
[313783844,1707723528918,-50000.0,0.0004,30]
[313783845,1707723528940,-50000.0,0.0004,30]
[313783846,1707723528964,-60000.0,0.0004,30]
[313783847,1707723528987,-4871.26410612,0.0004,120]
[313783848,1707723529010,-517.38,0.0004,30]
[313783849,1707723529300,-100501.90507447,0.0004,30]
[313783850,1707723529325,-3000.0,0.0004,30]
[313783851,1707723529348,-25000.0,0.0004,45]
[313783852,1707723529372,-187.0,0.0004,30]
[313783853,1707723529396,-30000.0,0.0004,60]
[313783854,1707723529422,-13079.50270293,0.0004,30]
[313783855,1707723529446,-13882.92792416,0.0004,30]
[313783856,1707723529471,-5605.67793683,0.0004,30]
[313783857,1707723529496,-12356.10615371,0.0004,30]
[313783858,1707723529520,-23511.71890079,0.0004,30]
[313783859,1707723529549,-18049.97175843,0.0004,30]
[313783860,1707723529575,-10665.43765378,0.0004,30]
[313783861,1707723529601,-13620.21345964,0.0004,30]
[313783862,1707723529624,-20000.0,0.0004,120]
[313783863,1707723529648,-25138.845056,0.0004,120]
[313783864,1707723529673,-7186.2625324,0.0004,30]
[313783865,1707723529698,-17483.21345842,0.0004,30]
[313783866,1707723529723,-16468.87922101,0.0004,30]
[313783867,1707723529748,-15653.47202928,0.0004,30]
[313783868,1707723529772,-150.0,0.00040007,120]
[313783869,1707723529796,-153.99048242,0.00040029,30]
[313783870,1707723529819,-153.9904825,0.00040036,30]
[313783871,1707723529842,-157.47265253,0.00040046,30]
[313783872,1707723529866,-285.0,0.000401,30]
[313783873,1707723529889,-269.7095549,0.000401,60]
[313783874,1707723529912,-155.65020668,0.00040103,30]
[313783875,1707723529936,-159.36573634,0.00040167,30]
[313783876,1707723529961,-1507.77190752,0.00040175,30]
[313783877,1707723529986,-154.66614984,0.00040191,30]
[313783878,1707723530012,-1507.77190754,0.00040191,30]
[313783879,1707723530039,-244.47949734,0.00040204,30]
[313783880,1707723530067,-153.71880628,0.00040215,30]
[313783881,1707723530091,-457.68171359,0.00040273,30]
[313783882,1707723530115,-285.0,0.000403,30]
[313783883,1707723530140,-1000.0,0.000404,42]
[313783884,1707723530165,-446.0,0.000404,43]
[313783885,1707723530190,-285.0,0.000405,30]
[313783886,1707723530215,-300.0,0.000405,39]
[313783887,1707723530240,-230.0,0.000405,30]
[313783888,1707723530265,-150.0,0.000405,119]
[313783889,1707723530293,-1000.0,0.000406,30]
[313783890,1707723530322,-285.0,0.000407,30]
[313783891,1707723530346,-5039.18,0.000408,30]
[313783892,1707723530370,-20436.0,0.000408,30]
[313783893,1707723530394,-285.0,0.000409,30]
[313783894,1707723530418,-1000.0,0.000409,30]
[313783895,1707723530441,-1000.0,0.000409,30]
[313783896,1707723530467,-451.42941193,0.00041,40]
[313783897,1707723530491,-150.0,0.00041,108]
[313783898,1707723530517,-187.0,0.00041,30]
[313783899,1707723530542,-10000.0,0.00041,30]
[313783900,1707723530567,-10000.0,0.00041,30]
[313783901,1707723530592,-2256.83987289,0.00041,30]
[313783902,1707723531368,191.17,0.00021561,2]
[313783903,1707723531586,290.51857741,0.000224,2]
[313783904,1707723532534,1046.94308784,0.000224,2]
[313783905,1707723532949,1262.8216172,0.000224,2]
[313783906,1707723534496,-175.16780381,0.00040119,30]
[313783907,1707723534523,-7743.16012711,0.00041,30]
[313783908,1707723534546,-10000.0,0.00041,30]
[313783909,1707723534569,-9829.24259999,0.00041,30]
[313783910,1707723534594,-230.0,0.00041,30]
[313783911,1707723534620,-578.144146,0.00041095,120]
[313783912,1707723534644,-527.3522457,0.00041095,30]
[313783913,1707723534667,-1500.0,0.00041095,40]
[313783914,1707723534690,-1261.47,0.00041095,32]
[313783915,1707723534712,-1576.8375,0.00041095,42]
[313783916,1707723534735,-1892.205,0.00041095,52]
[313783917,1707723534758,-2207.5725,0.00041095,62]
[313783918,1707723534780,-2522.94,0.00041095,72]
[313783919,1707723534803,-2838.3075,0.00041095,82]
[313783920,1707723534825,-3153.675,0.00041095,92]
[313783921,1707723534847,-3469.0425,0.00041095,102]
[313783922,1707723534869,-3784.41,0.00041095,112]
[313783923,1707723534891,-4099.7775,0.00041095,120]
[313783924,1707723534914,-1577.05074145,0.00041095,120]
[313783925,1707723534937,-4000.0,0.00041096,30]
[313783926,1707723534960,-285.0,0.000411,30]
[313783927,1707723534983,-5000.0,0.000411,120]
[313783928,1707723535007,-40835.0812084,0.000411,30]
[313783929,1707723535030,-94233.15209866,0.000411,30]
[313783930,1707723535053,-5500.0,0.000411,30]
[313783931,1707723535075,-1500.0,0.000411,30]
[313783932,1707723535098,-20000.0,0.000412,30]
[313783933,1707723535120,-1000.0,0.000412,30]
[313783934,1707723535143,-4256.35473647,0.000412,120]
[313783935,1707723535166,-285.0,0.000413,30]
[313783936,1707723535189,-1500.0,0.00041369,40]
[313783937,1707723535213,-300.0,0.000414,47]
[313783938,1707723535237,-1000.0,0.000414,44]
[313783939,1707723535261,-5030.0,0.0004142,30]
[313783940,1707723535285,-5030.0,0.0004142,60]
[313783941,1707723535310,-285.0,0.000415,30]
[313783942,1707723535333,-1000.0,0.000415,30]
[313783943,1707723535357,-314.8683543,0.000415,41]
[313783944,1707723535382,-150.0,0.000415,111]
[313783945,1707723535406,-1000.0,0.000415,30]
[313783946,1707723535430,-230.0,0.000415,31]
[313783947,1707723535453,-173.0,0.0004156,53]
[313783948,1707723535476,-1872.0,0.00041643,30]
[313783949,1707723535499,-1500.0,0.00041643,40]
[313783950,1707723535522,-285.0,0.000417,30]
[313783951,1707723535548,-4409.0,0.000417,87]
[313783952,1707723535572,-20000.0,0.000418,30]
[313783953,1707723535595,-493.93626249,0.000418,30]
[313783954,1707723535617,-213995.93880208,0.000418,33]
[313783955,1707723535640,-16000.0,0.0004188,90]
[313783956,1707723535664,-285.0,0.000419,30]
[313783957,1707723535688,-524.78276506,0.000419,30]
[313783958,1707723535713,-90000.0,0.000419,30]
[313783959,1707723535735,-1500.0,0.00041917,40]
[313783960,1707723535759,-250.0,0.0004197,61]
[313783961,1707723535782,-395.0,0.0004197,61]
[313783962,1707723536024,-250.0,0.0004197,61]
[313783963,1707723536048,-395.0,0.0004197,61]
[313783964,1707723536072,-150.5,0.0004197,61]
[313783965,1707723536094,-3388.0,0.0004197,61]
[313783966,1707723536117,-1837.0,0.0004197,61]
[313783967,1707723536141,-9545.0,0.0004197,61]
[313783968,1707723536164,-150.5,0.0004197,61]
[313783969,1707723536187,-259.2,0.0004197,61]
[313783970,1707723536211,-3388.0,0.0004197,61]
[313783971,1707723536235,-1837.0,0.0004197,61]
[313783972,1707723536258,-9545.0,0.0004197,61]
[313783973,1707723536281,-205.63,0.0004197,61]
[313783974,1707723536305,-255.47,0.0004197,61]
[313783975,1707723536329,-313.19158573,0.0004198,118]
[313783976,1707723536353,-395.0,0.0004198,61]
[313783977,1707723536377,-250.0,0.0004198,61]
[313783978,1707723536400,-250.0,0.0004198,61]
[313783979,1707723536424,-395.0,0.0004198,61]
[313783980,1707723536446,-155.37,0.0004198,61]
[313783981,1707723536469,-250.0,0.0004198,61]
[313783982,1707723536492,-395.0,0.0004198,61]
[313783983,1707723536514,-252.0,0.0004198,61]
[313783984,1707723536538,-397.65,0.0004198,61]
[313783985,1707723536561,-150.5,0.0004198,61]
[313783986,1707723536585,-1837.0,0.0004198,61]
[313783987,1707723536608,-3388.0,0.0004198,61]
[313783988,1707723536631,-9545.0,0.0004198,61]
[313783989,1707723536655,-150.5,0.0004198,60]
[313783990,1707723536678,-150.5,0.0004198,61]
[313783991,1707723536702,-150.5,0.0004198,61]
[313783992,1707723536725,-3388.0,0.0004198,61]
[313783993,1707723536748,-1837.0,0.0004198,61]
[313783994,1707723536771,-9545.0,0.0004198,61]
[313783995,1707723536794,-150.5,0.0004198,61]
[313783996,1707723536817,-259.84,0.0004198,61]
[313783997,1707723536841,-3388.0,0.0004198,61]
[313783998,1707723536865,-1837.0,0.0004198,61]
[313783999,1707723536888,-9545.0,0.0004198,61]
[313784000,1707723536911,-1846.16,0.0004198,61]
[313784001,1707723536934,-3390.53,0.0004198,61]
[313784002,1707723536957,-9546.68,0.0004198,61]
[313784003,1707723536981,-150.5,0.0004198,61]
[313784004,1707723537004,-395.0,0.0004199,61]
[313784005,1707723537027,-250.0,0.0004199,61]
[313784006,1707723537050,-250.0,0.0004199,61]
[313784007,1707723537073,-395.0,0.0004199,61]
[313784008,1707723537095,-150.5,0.0004199,61]
[313784009,1707723537118,-188.0,0.0004199,30]
[313784010,1707723537140,-250.0,0.0004199,61]
[313784011,1707723537163,-395.0,0.0004199,61]
[313784012,1707723537186,-250.0,0.0004199,61]
[313784013,1707723537208,-395.0,0.0004199,61]
[313784014,1707723537235,-150.5,0.0004199,61]
[313784015,1707723537258,-204.58,0.0004199,61]
[313784016,1707723537283,-1837.0,0.0004199,61]
[313784017,1707723537308,-3388.0,0.0004199,61]
[313784018,1707723537333,-9545.0,0.0004199,61]
[313784019,1707723537355,-150.5,0.0004199,60]
[313784020,1707723537378,-150.5,0.0004199,61]
[313784021,1707723537402,-150.5,0.0004199,61]
[313784022,1707723537425,-3388.0,0.0004199,61]
[313784023,1707723537449,-1837.0,0.0004199,61]
[313784024,1707723537471,-9545.0,0.0004199,61]
[313784025,1707723537494,-154.01,0.0004199,61]
[313784026,1707723537517,-150.5,0.0004199,61]
[313784027,1707723537540,-150.5,0.0004199,61]
[313784028,1707723537564,-3388.0,0.0004199,61]
[313784029,1707723537587,-1837.0,0.0004199,61]
[313784030,1707723537610,-9545.0,0.0004199,61]
[313784031,1707723537632,-1837.0,0.0004199,61]
[313784032,1707723537655,-3388.0,0.0004199,61]
[313784033,1707723537678,-9545.0,0.0004199,61]
[313784034,1707723537702,-150.5,0.0004199,61]
[313784035,1707723537724,-177.55,0.0004199,61]
[313784036,1707723537748,-27422.0,0.00042,30]
[313784037,1707723537771,-1019.0,0.00042,30]
[313784038,1707723537793,-646.36914066,0.00042,120]
[313784039,1707723537817,-314.8683543,0.00042,42]
[313784040,1707723537840,-14305.86151976,0.00042,30]
[313784041,1707723537863,-351.60052454,0.00042,30]
[313784042,1707723537886,-150.0,0.00042,116]
[313784043,1707723537909,-1000.0,0.00042,120]
[313784044,1707723537933,-366.28269576,0.00042,120]
[313784045,1707723537956,-4582.36,0.00042,30]
[313784046,1707723537979,-8436.22987327,0.00042,30]
[313784047,1707723538002,-1147.96803083,0.00042,30]
[313784048,1707723538025,-2000.0,0.00042,120]
[313784049,1707723538049,-2000.0,0.00042,120]
[313784050,1707723538072,-9587.73040692,0.00042,30]
[313784051,1707723538096,-187.0,0.00042,30]
[313784052,1707723538121,-230.0,0.00042,31]
[313784053,1707723538145,-200.0,0.00042,49]
[313784054,1707723538169,-1250.131363,0.00042,30]
[313784055,1707723538194,-285.0,0.000421,30]
[313784056,1707723538218,-1500.0,0.00042191,40]
[313784057,1707723538241,-20000.0,0.000422,30]
[313784058,1707723538265,-3640.85839635,0.00042222,120]
[313784059,1707723538290,-5025.49769912,0.00042222,120]
[313784060,1707723538315,-285.0,0.000423,30]
[313784061,1707723538340,-300.0,0.000424,51]
[313784062,1707723538364,-1000.0,0.000424,46]
[313784063,1707723538390,-4402.0,0.0004242,30]
[313784064,1707723538415,-4402.0,0.0004242,60]
[313784065,1707723538623,-1500.0,0.00042465,40]
[313784066,1707723538648,-285.0,0.000425,30]
[313784067,1707723538672,-314.8683543,0.000425,42]
[313784068,1707723538696,-2000.0,0.000425,120]
[313784069,1707723538720,-230.0,0.000425,32]
[313784070,1707723538744,-11547.84344201,0.000425,30]
[313784071,1707723538768,-150.0,0.000425,118]
[313784072,1707723538791,-5000.0,0.0004254,30]
[313784073,1707723538814,-5000.0,0.0004254,30]
[313784074,1707723538839,-5000.0,0.0004254,30]
[313784075,1707723538861,-5000.0,0.0004254,30]
[313784076,1707723538886,-2435.0,0.00042583,120]
[313784077,1707723538909,-2435.0,0.00042583,120]
[313784078,1707723538933,-2435.0,0.00042583,120]
[313784079,1707723538956,-2435.0,0.00042583,120]
[313784080,1707723538978,-2435.0,0.00042583,120]
[313784081,1707723539001,-2435.0,0.00042583,120]
[313784082,1707723539024,-5836.7637467,0.000426,120]
[313784083,1707723539048,-20000.0,0.000426,30]
[313784084,1707723539072,-285.0,0.000427,30]
[313784085,1707723539095,-7000.000001,0.000427,55]
[313784086,1707723539118,-4422.7675608,0.000427,120]
[313784087,1707723539140,-1500.0,0.00042739,40]
[313784088,1707723539164,-1000000.0,0.000428,30]
[313784089,1707723539186,-349183.04479238,0.00042888,32]
[313784090,1707723539210,-1400.68019212,0.00042888,32]
[313784091,1707723539234,-285.0,0.000429,30]
[313784092,1707723539258,-424.56314776,0.000429,30]
[313784093,1707723539282,-10493.0,0.000429,30]
[313784094,1707723539308,-245.44201632,0.000429,30]
[313784095,1707723539332,-4975.49100924,0.00042998,31]
[313784096,1707723539354,-15000.0,0.00042999,60]
[313784097,1707723539380,-209.19253126,0.00043,30]
[313784098,1707723539404,-5000.0,0.00043,30]
[313784099,1707723539428,-634.65510642,0.00043,120]
[313784100,1707723539451,-4000.0,0.00043,30]
[313784101,1707723539475,-300.0,0.00043,43]
[313784102,1707723539498,-2000.0,0.00043,30]
[313784103,1707723539522,-2000.0,0.00043,30]
[313784104,1707723539545,-2386.208232,0.00043,30]
[313784105,1707723539568,-8941.02591307,0.00043,30]
[313784106,1707723539590,-1048.0,0.00043,30]
[313784107,1707723539613,-150.0,0.00043,120]
[313784108,1707723539636,-20000.0,0.00043,120]
[313784109,1707723539659,-5028.0526011,0.00043,120]
[313784110,1707723539683,-1407.57284112,0.00043,120]
[313784111,1707723539706,-8420.95482126,0.00043,60]
[313784112,1707723539729,-20000.0,0.00043,30]
[313784113,1707723539752,-144654.4415839,0.00043,30]
[313784114,1707723539774,-8871.30802948,0.00043,30]
[313784115,1707723539799,-509.41428801,0.00043,60]
[313784116,1707723539822,-75264.399998,0.00043,120]
[313784117,1707723539845,-5400.0,0.00043,30]
[313784118,1707723539867,-187.0,0.00043,30]
[313784119,1707723539891,-2399.06552177,0.00043,90]
[313784120,1707723539914,-248.802665,0.00043,32]
[313784121,1707723539937,-1500.0,0.00043013,40]
[313784122,1707723539960,-285.0,0.000431,30]
[313784123,1707723539983,-1500.0,0.00043287,40]
[313784124,1707723540007,-285.0,0.000433,30]
[313784125,1707723540032,-43788.95186094,0.000433,30]
[313784126,1707723540057,-500.0,0.0004336,60]
[313784127,1707723540083,-300.0,0.000434,55]
[313784128,1707723540108,-1000.0,0.000434,48]
[313784129,1707723540133,-3773.0,0.0004342,30]
[313784130,1707723540158,-3773.0,0.0004342,60]
[313784131,1707723540181,-5581.61276557,0.00043499,120]
[313784132,1707723540206,-269437.78799671,0.000435,30]
[313784133,1707723543065,155.0,0.000224,2]
[313784134,1707723545041,-730562.21200329,0.000435,30]
[313784135,1707723545075,-285.0,0.000435,30]
[313784136,1707723545108,-150.0,0.000435,110]
[313784137,1707723545140,-7500.0,0.000435,30]
[313784138,1707723545172,-5024.46655572,0.000435,31]
[313784139,1707723545203,-20000.0,0.0004355,30]
[313784140,1707723545238,-1500.0,0.00043561,40]
[313784141,1707723545271,-173.0,0.0004364,57]
[313784142,1707723545300,-60000.0,0.0004366,30]
[313784143,1707723545327,-285.0,0.000437,30]
[313784144,1707723545351,-16846.363558,0.00043798,30]
[313784145,1707723545376,-15141.00758141,0.000438,30]
[313784146,1707723545403,-938163.03089387,0.000438,30]
[313784147,1707723545428,-500.0,0.00043835,30]
[313784148,1707723545453,-1000.0,0.00043835,30]
[313784149,1707723545478,-1000.0,0.00043835,30]
[313784150,1707723545503,-1000.0,0.00043835,30]
[313784151,1707723545528,-1000.0,0.00043835,30]
[313784152,1707723545555,-1000.0,0.00043835,30]
[313784153,1707723545580,-1000.0,0.00043835,30]
[313784154,1707723545604,-1000.0,0.00043835,30]
[313784155,1707723546151,-1000.0,0.00043835,30]
[313784156,1707723546176,-1000.0,0.00043835,30]
[313784157,1707723546200,-1000.0,0.00043835,30]
[313784158,1707723546236,-1000.0,0.00043835,30]
[313784159,1707723546261,-1000.0,0.00043835,30]
[313784160,1707723546287,-1000.0,0.00043835,30]
[313784161,1707723546314,-1000.0,0.00043835,30]
[313784162,1707723546340,-1000.0,0.00043835,30]
[313784163,1707723546365,-1000.0,0.00043835,30]
[313784164,1707723546391,-1000.0,0.00043835,30]
[313784165,1707723546416,-1000.0,0.00043835,30]
[313784166,1707723546440,-1000.0,0.00043835,30]
[313784167,1707723546464,-1000.0,0.00043835,30]
[313784168,1707723546488,-1000.0,0.00043835,30]
[313784169,1707723546511,-1000.0,0.00043835,30]
[313784170,1707723546537,-935.98899172,0.00043835,30]
[313784171,1707723546562,-1500.0,0.00043835,40]
[313784172,1707723546585,-3000.0,0.00043835,120]
[313784173,1707723546991,5000.0,0.0004,30]